[Event "Titled Tuesday Blitz March 22 Late 2022"]
[White "Broca Jimenez, Fernando"]
[Black "Pesotskiy, Mikhail"]
[WhiteFideId "5104742"]
[BlackFideId "34164453"]
[WhiteElo "2062"]
[BlackElo "2010"]
[Result "0-1"]
[Round "02"]
[TimeControl "180+1"]
[Date "2022.03.22"]
[WhiteClock "0:00:03"]
[BlackClock "0:01:00"]

1. e4 {[%clk 0:03:00]}  e6 {[%clk 0:03:00]} 2. d4 {[%clk 0:02:57]}  d5 {[%clk 0:03:01]} 3. Nc3 {[%clk 0:02:55]}  Nc6 {[%clk 0:03:01]} 4. e5 {[%clk 0:02:49]}  f6 {[%clk 0:03:01]} 5. f4 {[%clk 0:02:48]}  fxe5 {[%clk 0:03:02]} 6. dxe5 {[%clk 0:02:30]}  Nh6 {[%clk 0:03:02]} 7. Nf3 {[%clk 0:02:28]}  Be7 {[%clk 0:03:01]} 8. Bd3 {[%clk 0:02:28]}  O-O {[%clk 0:03:02]} 9. O-O {[%clk 0:02:28]}  Nb4 {[%clk 0:03:02]} 10. Be2 {[%clk 0:02:23]}  c5 {[%clk 0:03:03]} 11. a3 {[%clk 0:02:22]}  Nc6 {[%clk 0:03:03]} 12. Ng5 {[%clk 0:02:07]}  Nf5 {[%clk 0:02:54]} 13. Nf3 {[%clk 0:01:40]}  Bd7 {[%clk 0:02:36]} 14. Bd2 {[%clk 0:01:39]}  Qb6 {[%clk 0:02:34]} 15. Rb1 {[%clk 0:01:30]}  Rad8 {[%clk 0:02:24]} 16. Kh1 {[%clk 0:01:29]}  Be8 {[%clk 0:02:18]} 17. g4 {[%clk 0:01:29]}  Nfd4 {[%clk 0:02:17]} 18. Bd3 {[%clk 0:01:22]}  c4 {[%clk 0:02:11]} 19. Be2 {[%clk 0:01:03]}  Nxe2 {[%clk 0:02:10]} 20. Nxe2 {[%clk 0:01:01]}  d4 {[%clk 0:02:09]} 21. Ng3 {[%clk 0:00:53]}  Qa6 {[%clk 0:01:31]} 22. h4 {[%clk 0:00:47]}  c3 {[%clk 0:01:29]} 23. Bc1 {[%clk 0:00:39]}  d3 {[%clk 0:01:24]} 24. cxd3 {[%clk 0:00:39]}  Rxd3 {[%clk 0:01:22]} 25. Qe2 {[%clk 0:00:34]}  Nd4 {[%clk 0:01:20]} 26. Nxd4 {[%clk 0:00:29]}  Rxd4 {[%clk 0:01:17]} 27. Qxa6 {[%clk 0:00:28]}  bxa6 {[%clk 0:01:18]} 28. bxc3 {[%clk 0:00:27]}  Rd3 {[%clk 0:01:18]} 29. Ne2 {[%clk 0:00:24]}  Bc6+ {[%clk 0:01:17]} 30. Kh2 {[%clk 0:00:23]}  Bxh4 {[%clk 0:01:14]} 31. Nd4 {[%clk 0:00:16]}  Bg3+ {[%clk 0:01:10]} 32. Kg1 {[%clk 0:00:16]}  Bd5 {[%clk 0:01:10]} 33. a4 {[%clk 0:00:11]}  g5 {[%clk 0:01:08]} 34. f5 {[%clk 0:00:09]}  Bxe5 {[%clk 0:01:07]} 35. Bxg5 {[%clk 0:00:07]}  Rg3+ {[%clk 0:01:00]} 36. Kf2 {[%clk 0:00:07]}  Rxg4 {[%clk 0:01:01]} 37. Rg1 {[%clk 0:00:06]}  Bxd4+ {[%clk 0:01:00]} 38. cxd4 {[%clk 0:00:06]}  Rxf5+ {[%clk 0:01:01]} 39. Ke3 {[%clk 0:00:06]}  Rfxg5 {[%clk 0:01:02]} 40. Rxg4 {[%clk 0:00:06]}  Rxg4 {[%clk 0:01:03]} 41. Rb8+ {[%clk 0:00:06]}  Kg7 {[%clk 0:01:03]} 42. Rd8 {[%clk 0:00:04]}  Rg3+ {[%clk 0:01:01]} 43. Kf4 {[%clk 0:00:04]}  Ra3 {[%clk 0:01:02]} 44. Ke5 {[%clk 0:00:02]}  Rxa4 {[%clk 0:01:01]} 45. Rd7+ {[%clk 0:00:03]}  Kg6 {[%clk 0:01:01]} 46. Rxa7 {[%clk 0:00:03]}  Ra1 {[%clk 0:01:01]} 47. Kf4 {[%clk 0:00:03]}  a5 {[%clk 0:01:00]} 0-1


[Site "https://www.chess.com"]

[Event "Titled Tuesday Blitz March 22 Late 2022"]
[White "Cappai, Davide"]
[Black "Martin Duque, Jesus"]
[WhiteFideId "813338"]
[BlackFideId "2208954"]
[WhiteElo "2295"]
[BlackElo "2243"]
[Result "1-0"]
[Round "02"]
[TimeControl "180+1"]
[Date "2022.03.22"]
[WhiteClock "0:00:58"]
[BlackClock "0:00:02"]

1. b3 {[%clk 0:03:00]}  b6 {[%clk 0:02:59]} 2. Bb2 {[%clk 0:03:01]}  Bb7 {[%clk 0:03:00]} 3. Nf3 {[%clk 0:03:02]}  Nf6 {[%clk 0:03:00]} 4. g3 {[%clk 0:03:02]}  g6 {[%clk 0:03:00]} 5. Bg2 {[%clk 0:03:03]}  Bg7 {[%clk 0:03:00]} 6. d3 {[%clk 0:03:03]}  O-O {[%clk 0:02:58]} 7. c4 {[%clk 0:03:03]}  c5 {[%clk 0:02:55]} 8. Nc3 {[%clk 0:03:04]}  e6 {[%clk 0:02:53]} 9. O-O {[%clk 0:03:04]}  d5 {[%clk 0:02:52]} 10. cxd5 {[%clk 0:03:04]}  exd5 {[%clk 0:02:52]} 11. e3 {[%clk 0:03:05]}  Qe7 {[%clk 0:02:51]} 12. d4 {[%clk 0:03:04]}  Rd8 {[%clk 0:02:49]} 13. Rc1 {[%clk 0:03:05]}  Na6 {[%clk 0:02:49]} 14. Ba3 {[%clk 0:03:05]}  Ne4 {[%clk 0:02:47]} 15. Na4 {[%clk 0:03:05]}  Nb4 {[%clk 0:02:40]} 16. dxc5 {[%clk 0:03:00]}  Nxa2 {[%clk 0:02:34]} 17. Ra1 {[%clk 0:02:57]}  Nac3 {[%clk 0:02:28]} 18. cxb6 {[%clk 0:02:44]}  Qxa3 {[%clk 0:01:26]} 19. Rxa3 {[%clk 0:02:42]}  Nxd1 {[%clk 0:01:27]} 20. Rxd1 {[%clk 0:02:43]}  axb6 {[%clk 0:01:27]} 21. Nd4 {[%clk 0:02:30]}  Bxd4 {[%clk 0:01:26]} 22. Rxd4 {[%clk 0:02:30]}  b5 {[%clk 0:01:27]} 23. Rb4 {[%clk 0:02:30]}  bxa4 {[%clk 0:01:18]} 24. Rxb7 {[%clk 0:02:17]}  Nc5 {[%clk 0:01:15]} 25. Rb5 {[%clk 0:02:13]}  axb3 {[%clk 0:01:10]} 26. Rxa8 {[%clk 0:02:02]}  Rxa8 {[%clk 0:01:11]} 27. Bxd5 {[%clk 0:02:02]}  Ra1+ {[%clk 0:00:38]} 28. Kg2 {[%clk 0:02:01]}  Rc1 {[%clk 0:00:16]} 29. Bxb3 {[%clk 0:02:00]}  Nxb3 {[%clk 0:00:16]} 30. Rxb3 {[%clk 0:01:59]}  h5 {[%clk 0:00:17]} 31. Rb6 {[%clk 0:01:58]}  Kg7 {[%clk 0:00:17]} 32. h4 {[%clk 0:01:58]}  Ra1 {[%clk 0:00:16]} 33. Kf3 {[%clk 0:01:59]}  Ra4 {[%clk 0:00:16]} 34. e4 {[%clk 0:01:59]}  Rc4 {[%clk 0:00:16]} 35. Kf4 {[%clk 0:01:59]}  Ra4 {[%clk 0:00:16]} 36. f3 {[%clk 0:02:00]}  Rc4 {[%clk 0:00:17]} 37. g4 {[%clk 0:02:00]}  hxg4 {[%clk 0:00:16]} 38. fxg4 {[%clk 0:02:00]}  Ra4 {[%clk 0:00:17]} 39. h5 {[%clk 0:02:01]}  gxh5 {[%clk 0:00:17]} 40. gxh5 {[%clk 0:02:01]}  Ra5 {[%clk 0:00:16]} 41. h6+ {[%clk 0:02:01]}  Kh7 {[%clk 0:00:15]} 42. Rf6 {[%clk 0:02:02]}  Ra1 {[%clk 0:00:11]} 43. Ke5 {[%clk 0:02:01]}  Ra5+ {[%clk 0:00:09]} 44. Kd6 {[%clk 0:02:01]}  Ra7 {[%clk 0:00:07]} 45. e5 {[%clk 0:02:00]}  Rb7 {[%clk 0:00:06]} 46. Kd5 {[%clk 0:01:56]}  Ra7 {[%clk 0:00:07]} 47. Ke4 {[%clk 0:01:57]}  Rb7 {[%clk 0:00:07]} 48. Kf5 {[%clk 0:01:57]}  Ra7 {[%clk 0:00:07]} 49. Rd6 {[%clk 0:01:55]}  Rb7 {[%clk 0:00:07]} 50. Kf6 {[%clk 0:01:24]}  Ra7 {[%clk 0:00:07]} 51. Rd8 {[%clk 0:01:20]}  Rb7 {[%clk 0:00:06]} 52. Rf8 {[%clk 0:01:20]}  Rb6+ {[%clk 0:00:05]} 53. Kxf7 {[%clk 0:01:19]}  Kxh6 {[%clk 0:00:05]} 54. e6 {[%clk 0:01:20]}  Rb1 {[%clk 0:00:02]} 55. e7 {[%clk 0:01:16]}  Rf1+ {[%clk 0:00:02]} 56. Ke8 {[%clk 0:01:11]}  Rd1 {[%clk 0:00:02]} 57. Rf2 {[%clk 0:01:06]}  Kg7 {[%clk 0:00:02]} 58. Rg2+ {[%clk 0:00:58]}  Kf6 {[%clk 0:00:02]} 59. Kf8 {[%clk 0:00:58]}  Ra1 {[%clk 0:00:02]} 60. e8=Q {[%clk 0:00:58]} 1-0


[Site "https://www.chess.com"]

[Event "Titled Tuesday Blitz March 22 Late 2022"]
[White "Cervantes Landeiro, Thalia"]
[Black "Jones, Gawain C B"]
[WhiteFideId "3520498"]
[BlackFideId "409561"]
[WhiteElo "2021"]
[BlackElo "2657"]
[Result "0-1"]
[Round "02"]
[TimeControl "180+1"]
[Date "2022.03.22"]
[WhiteClock "0:00:18"]
[BlackClock "0:02:15"]

1. d4 {[%clk 0:03:00]}  Nf6 {[%clk 0:02:59]} 2. c4 {[%clk 0:03:00]}  c5 {[%clk 0:02:59]} 3. d5 {[%clk 0:03:00]}  e5 {[%clk 0:02:56]} 4. Nc3 {[%clk 0:02:51]}  d6 {[%clk 0:02:56]} 5. e4 {[%clk 0:02:51]}  g6 {[%clk 0:02:53]} 6. Nf3 {[%clk 0:02:51]}  Bg7 {[%clk 0:02:51]} 7. Be2 {[%clk 0:02:47]}  O-O {[%clk 0:02:51]} 8. O-O {[%clk 0:02:47]}  Kh8 {[%clk 0:02:46]} 9. Ne1 {[%clk 0:02:40]}  Nbd7 {[%clk 0:02:44]} 10. g3 {[%clk 0:02:40]}  Qe7 {[%clk 0:02:42]} 11. Ng2 {[%clk 0:02:40]}  Ng8 {[%clk 0:02:40]} 12. Qc2 {[%clk 0:02:33]}  f5 {[%clk 0:02:39]} 13. exf5 {[%clk 0:02:19]}  gxf5 {[%clk 0:02:39]} 14. Re1 {[%clk 0:02:07]}  a6 {[%clk 0:02:32]} 15. h4 {[%clk 0:01:59]}  Ndf6 {[%clk 0:02:29]} 16. Bd3 {[%clk 0:01:54]}  Qd7 {[%clk 0:02:22]} 17. Na4 {[%clk 0:01:44]}  f4 {[%clk 0:02:20]} 18. Nb6 {[%clk 0:01:35]}  Qh3 {[%clk 0:02:20]} 19. Nxc8 {[%clk 0:01:06]}  f3 {[%clk 0:02:17]} 20. Ne3 {[%clk 0:01:00]}  Ng4 {[%clk 0:02:17]} 21. Bf1 {[%clk 0:00:18]}  Qh2# {[%clk 0:02:15]} 0-1


[Site "https://www.chess.com"]

[Event "Titled Tuesday Blitz March 22 Late 2022"]
[White "Costachi, Mihnea"]
[Black "Ezat, Mohamed"]
[WhiteFideId "1217518"]
[BlackFideId "10600906"]
[WhiteElo "2464"]
[BlackElo "2386"]
[Result "1-0"]
[Round "02"]
[TimeControl "180+1"]
[Date "2022.03.22"]
[WhiteClock "0:00:37"]
[BlackClock "0:00:04"]

1. d4 {[%clk 0:03:00]}  Nf6 {[%clk 0:02:59]} 2. c4 {[%clk 0:03:01]}  g6 {[%clk 0:02:59]} 3. Nc3 {[%clk 0:03:00]}  Bg7 {[%clk 0:02:59]} 4. e4 {[%clk 0:02:59]}  d6 {[%clk 0:03:00]} 5. Be2 {[%clk 0:03:00]}  O-O {[%clk 0:03:00]} 6. Bg5 {[%clk 0:03:00]}  c5 {[%clk 0:03:00]} 7. d5 {[%clk 0:03:00]}  b5 {[%clk 0:02:58]} 8. cxb5 {[%clk 0:02:59]}  a6 {[%clk 0:02:58]} 9. a4 {[%clk 0:03:00]}  Qa5 {[%clk 0:02:58]} 10. Bd2 {[%clk 0:03:01]}  Qb4 {[%clk 0:02:57]} 11. Qc2 {[%clk 0:02:59]}  Nbd7 {[%clk 0:02:42]} 12. Nf3 {[%clk 0:02:52]}  axb5 {[%clk 0:02:38]} 13. Bxb5 {[%clk 0:02:52]}  Ba6 {[%clk 0:02:38]} 14. O-O {[%clk 0:02:50]}  Bxb5 {[%clk 0:02:37]} 15. axb5 {[%clk 0:02:46]}  Nb6 {[%clk 0:02:27]} 16. e5 {[%clk 0:02:38]}  Ng4 {[%clk 0:02:26]} 17. exd6 {[%clk 0:02:37]}  exd6 {[%clk 0:02:26]} 18. Ra6 {[%clk 0:02:12]}  Nc4 {[%clk 0:02:21]} 19. Rfa1 {[%clk 0:02:07]}  Rxa6 {[%clk 0:02:16]} 20. bxa6 {[%clk 0:02:07]}  Ra8 {[%clk 0:01:55]} 21. Ra4 {[%clk 0:01:59]}  Qxb2 {[%clk 0:01:52]} 22. Qxb2 {[%clk 0:01:59]}  Nxb2 {[%clk 0:01:52]} 23. Rxg4 {[%clk 0:02:00]}  Rxa6 {[%clk 0:01:50]} 24. Re4 {[%clk 0:01:48]}  h6 {[%clk 0:01:48]} 25. h4 {[%clk 0:01:44]}  Nd3 {[%clk 0:01:40]} 26. Re8+ {[%clk 0:01:37]}  Kh7 {[%clk 0:01:39]} 27. Re7 {[%clk 0:01:38]}  Kg8 {[%clk 0:01:35]} 28. Nb5 {[%clk 0:01:34]}  Ra1+ {[%clk 0:01:29]} 29. Ne1 {[%clk 0:01:31]}  Rd1 {[%clk 0:01:00]} 30. Ba5 {[%clk 0:01:26]}  c4 {[%clk 0:00:27]} 31. Kf1 {[%clk 0:01:13]}  Nxe1 {[%clk 0:00:26]} 32. Bxe1 {[%clk 0:01:07]}  Rxd5 {[%clk 0:00:26]} 33. Nc3 {[%clk 0:01:04]}  Rd3 {[%clk 0:00:22]} 34. Re8+ {[%clk 0:01:03]}  Kh7 {[%clk 0:00:22]} 35. Nb5 {[%clk 0:01:03]}  d5 {[%clk 0:00:19]} 36. Rd8 {[%clk 0:01:00]}  Bf6 {[%clk 0:00:17]} 37. Rd7 {[%clk 0:00:59]}  Kg7 {[%clk 0:00:17]} 38. g3 {[%clk 0:00:55]}  g5 {[%clk 0:00:16]} 39. h5 {[%clk 0:00:52]}  d4 {[%clk 0:00:16]} 40. Nd6 {[%clk 0:00:52]}  Rd1 {[%clk 0:00:03]} 41. Rxf7+ {[%clk 0:00:51]}  Kg8 {[%clk 0:00:02]} 42. Ke2 {[%clk 0:00:51]}  c3 {[%clk 0:00:03]} 43. Kxd1 {[%clk 0:00:51]}  Be5 {[%clk 0:00:03]} 44. Rd7 {[%clk 0:00:47]}  d3 {[%clk 0:00:04]} 45. Nf5 {[%clk 0:00:38]}  c2+ {[%clk 0:00:04]} 46. Kc1 {[%clk 0:00:39]}  Kf8 {[%clk 0:00:03]} 47. Bb4+ {[%clk 0:00:37]}  Kg8 {[%clk 0:00:03]} 48. Nxh6+ {[%clk 0:00:37]}  Kh8 {[%clk 0:00:04]} 49. Nf7+ {[%clk 0:00:37]} 1-0


[Site "https://www.chess.com"]

[Event "Titled Tuesday Blitz March 22 Late 2022"]
[White "Cramling Bellon, Anna"]
[Black "Koutlas, Nikolaos"]
[WhiteFideId "32009232"]
[BlackFideId "25827138"]
[WhiteElo "1905"]
[BlackElo "1610"]
[Result "0-1"]
[Round "02"]
[TimeControl "180+1"]
[Date "2022.03.22"]
[WhiteClock "0:00:02"]
[BlackClock "0:00:16"]

1. d4 {[%clk 0:02:06]}  Nf6 {[%clk 0:02:42]} 2. c4 {[%clk 0:02:06]}  g6 {[%clk 0:02:41]} 3. Nc3 {[%clk 0:02:06]}  Bg7 {[%clk 0:02:41]} 4. e4 {[%clk 0:02:06]}  d6 {[%clk 0:02:41]} 5. h3 {[%clk 0:02:07]}  e5 {[%clk 0:02:39]} 6. d5 {[%clk 0:02:04]}  O-O {[%clk 0:02:34]} 7. Bg5 {[%clk 0:02:02]}  Na6 {[%clk 0:02:18]} 8. Nf3 {[%clk 0:02:00]}  h6 {[%clk 0:02:14]} 9. Be3 {[%clk 0:02:00]}  Nc5 {[%clk 0:02:12]} 10. Qc2 {[%clk 0:02:00]}  a5 {[%clk 0:02:11]} 11. Be2 {[%clk 0:02:00]}  Nh5 {[%clk 0:01:35]} 12. g3 {[%clk 0:01:59]}  f5 {[%clk 0:01:33]} 13. Nh4 {[%clk 0:01:56]}  f4 {[%clk 0:00:56]} 14. Bxc5 {[%clk 0:01:51]}  fxg3 {[%clk 0:00:57]} 15. Nxg6 {[%clk 0:01:36]}  dxc5 {[%clk 0:00:54]} 16. Bxh5 {[%clk 0:00:53]}  Rxf2 {[%clk 0:00:51]} 17. Be2 {[%clk 0:00:39]}  Qg5 {[%clk 0:00:45]} 18. Ne7+ {[%clk 0:00:23]}  Qxe7 {[%clk 0:00:43]} 19. O-O-O {[%clk 0:00:22]}  g2 {[%clk 0:00:30]} 20. Rhg1 {[%clk 0:00:12]}  Bxh3 {[%clk 0:00:29]} 21. Rd3 {[%clk 0:00:07]}  Rf1+ {[%clk 0:00:19]} 22. Rd1 {[%clk 0:00:03]}  Qg5+ {[%clk 0:00:17]} 23. Kb1 {[%clk 0:00:02]}  Raf8 {[%clk 0:00:17]} 24. Rdxf1 {[%clk 0:00:01]}  Rxf1+ {[%clk 0:00:16]} 25. Bxf1 {[%clk 0:00:01]}  gxf1=Q+ {[%clk 0:00:16]} 26. Rxf1 {[%clk 0:00:02]}  Bxf1 {[%clk 0:00:17]} 27. Qf2 {[%clk 0:00:02]}  Bd3+ {[%clk 0:00:16]} 0-1


[Site "https://www.chess.com"]

[Event "Titled Tuesday Blitz March 22 Late 2022"]
[White "Cruz Mendez, Jean Marco"]
[Black "Gulecyuz, Deniz"]
[WhiteFideId "3526402"]
[BlackFideId "30921341"]
[WhiteElo "2064"]
[BlackElo "1923"]
[Result "0-1"]
[Round "02"]
[TimeControl "180+1"]
[Date "2022.03.22"]
[WhiteClock "0:00:01"]
[BlackClock "0:00:22"]

1. Nf3 {[%clk 0:02:59]}  Nf6 {[%clk 0:02:57]} 2. b3 {[%clk 0:03:00]}  d5 {[%clk 0:02:55]} 3. Bb2 {[%clk 0:03:01]}  c5 {[%clk 0:02:56]} 4. e3 {[%clk 0:03:02]}  e6 {[%clk 0:02:56]} 5. d4 {[%clk 0:03:01]}  Nc6 {[%clk 0:02:52]} 6. Nbd2 {[%clk 0:03:00]}  Bd6 {[%clk 0:02:44]} 7. Bd3 {[%clk 0:02:55]}  O-O {[%clk 0:02:43]} 8. O-O {[%clk 0:02:55]}  Re8 {[%clk 0:02:42]} 9. Ne5 {[%clk 0:02:55]}  a6 {[%clk 0:02:32]} 10. f4 {[%clk 0:02:53]}  Nd7 {[%clk 0:02:25]} 11. Nxf7 {[%clk 0:02:45]}  Kxf7 {[%clk 0:02:20]} 12. Qh5+ {[%clk 0:02:44]}  Kf8 {[%clk 0:02:08]} 13. dxc5 {[%clk 0:02:32]}  Bxc5 {[%clk 0:02:05]} 14. Qxh7 {[%clk 0:02:09]}  Bxe3+ {[%clk 0:01:55]} 15. Kh1 {[%clk 0:02:09]}  Nf6 {[%clk 0:01:50]} 16. Ba3+ {[%clk 0:01:51]}  Ne7 {[%clk 0:01:45]} 17. Qh3 {[%clk 0:01:38]}  Bxd2 {[%clk 0:01:41]} 18. Bg6 {[%clk 0:01:35]}  Qa5 {[%clk 0:01:33]} 19. Qh8+ {[%clk 0:01:31]}  Ng8 {[%clk 0:01:33]} 20. Bb2 {[%clk 0:01:28]}  Bc3 {[%clk 0:01:33]} 21. f5 {[%clk 0:01:02]}  exf5 {[%clk 0:01:05]} 22. Bxe8 {[%clk 0:00:19]}  Kxe8 {[%clk 0:01:01]} 23. Bxc3 {[%clk 0:00:20]}  Qxc3 {[%clk 0:01:02]} 24. Rae1 {[%clk 0:00:20]}  Kd8 {[%clk 0:00:56]} 25. Re2 {[%clk 0:00:16]}  Bd7 {[%clk 0:00:53]} 26. Qh4 {[%clk 0:00:17]}  Nf6 {[%clk 0:00:46]} 27. Rd1 {[%clk 0:00:15]}  Rc8 {[%clk 0:00:38]} 28. Qf4 {[%clk 0:00:13]}  Qc7 {[%clk 0:00:32]} 29. Qg5 {[%clk 0:00:12]}  Qd6 {[%clk 0:00:32]} 30. Qxg7 {[%clk 0:00:12]}  Ne4 {[%clk 0:00:31]} 31. Qd4 {[%clk 0:00:10]}  Kc7 {[%clk 0:00:31]} 32. c4 {[%clk 0:00:08]}  Nc6 {[%clk 0:00:25]} 33. Qe3 {[%clk 0:00:05]}  d4 {[%clk 0:00:25]} 34. Qf3 {[%clk 0:00:04]}  Rh8 {[%clk 0:00:22]} 35. g3 {[%clk 0:00:01]}  Nxg3+ {[%clk 0:00:22]} 0-1


[Site "https://www.chess.com"]

[Event "Titled Tuesday Blitz March 22 Late 2022"]
[White "Daianu, Cristian-Clement"]
[Black "Jacobson, Aaron"]
[WhiteFideId "1208926"]
[BlackFideId "2089912"]
[WhiteElo "2159"]
[BlackElo "2265"]
[Result "0-1"]
[Round "02"]
[TimeControl "180+1"]
[Date "2022.03.22"]
[WhiteClock "0:00:05"]
[BlackClock "0:01:14"]

1. d4 {[%clk 0:02:56]}  d5 {[%clk 0:02:53]} 2. Nf3 {[%clk 0:02:54]}  c5 {[%clk 0:02:53]} 3. Bf4 {[%clk 0:02:51]}  cxd4 {[%clk 0:02:52]} 4. Nxd4 {[%clk 0:02:51]}  f6 {[%clk 0:02:52]} 5. Bg3 {[%clk 0:02:50]}  e5 {[%clk 0:02:52]} 6. Nb3 {[%clk 0:02:49]}  Nc6 {[%clk 0:02:44]} 7. Nc3 {[%clk 0:02:46]}  Be6 {[%clk 0:02:37]} 8. e3 {[%clk 0:02:44]}  Bb4 {[%clk 0:02:31]} 9. a3 {[%clk 0:02:42]}  Bxc3+ {[%clk 0:02:30]} 10. bxc3 {[%clk 0:02:43]}  Nge7 {[%clk 0:02:29]} 11. Be2 {[%clk 0:02:36]}  O-O {[%clk 0:02:28]} 12. O-O {[%clk 0:02:36]}  Qc7 {[%clk 0:02:28]} 13. Nc5 {[%clk 0:02:25]}  Bc8 {[%clk 0:02:27]} 14. e4 {[%clk 0:02:25]}  dxe4 {[%clk 0:02:20]} 15. Nxe4 {[%clk 0:02:25]}  Rd8 {[%clk 0:02:18]} 16. Qb1 {[%clk 0:02:22]}  Bf5 {[%clk 0:02:13]} 17. Qb3+ {[%clk 0:02:07]}  Kh8 {[%clk 0:01:55]} 18. Bd3 {[%clk 0:02:07]}  Na5 {[%clk 0:01:46]} 19. Qa4 {[%clk 0:01:32]}  Nd5 {[%clk 0:01:36]} 20. Rfe1 {[%clk 0:00:12]}  Bd7 {[%clk 0:01:24]} 21. Bb5 {[%clk 0:00:08]}  Bxb5 {[%clk 0:01:18]} 22. Qxb5 {[%clk 0:00:09]}  a6 {[%clk 0:01:18]} 23. Qe2 {[%clk 0:00:09]}  Nxc3 {[%clk 0:01:17]} 24. Nxc3 {[%clk 0:00:09]}  Qxc3 {[%clk 0:01:18]} 25. Qh5 {[%clk 0:00:09]}  Qxc2 {[%clk 0:01:16]} 26. Rac1 {[%clk 0:00:09]}  Qg6 {[%clk 0:01:16]} 27. Qh4 {[%clk 0:00:09]}  Nb3 {[%clk 0:01:16]} 28. Rc3 {[%clk 0:00:08]}  Nd4 {[%clk 0:01:15]} 29. h3 {[%clk 0:00:08]}  Rac8 {[%clk 0:01:14]} 30. Rxc8 {[%clk 0:00:07]}  Rxc8 {[%clk 0:01:15]} 31. Bh2 {[%clk 0:00:05]}  Nf3+ {[%clk 0:01:14]} 0-1


[Site "https://www.chess.com"]

[Event "Titled Tuesday Blitz March 22 Late 2022"]
[White "Degtiarev, Evgeny"]
[Black "Perera Alfonso, Rene Humberto"]
[WhiteFideId "4149610"]
[BlackFideId "3514722"]
[WhiteElo "2218"]
[BlackElo "2313"]
[Result "0-1"]
[Round "02"]
[TimeControl "180+1"]
[Date "2022.03.22"]
[WhiteClock "0:00:03"]
[BlackClock "0:00:34"]

1. d4 {[%clk 0:03:00]}  d5 {[%clk 0:02:59]} 2. c4 {[%clk 0:03:00]}  c6 {[%clk 0:02:59]} 3. Nc3 {[%clk 0:02:58]}  Nf6 {[%clk 0:02:59]} 4. e3 {[%clk 0:02:57]}  e6 {[%clk 0:02:56]} 5. Nf3 {[%clk 0:02:49]}  Nbd7 {[%clk 0:02:56]} 6. Qc2 {[%clk 0:02:49]}  Bd6 {[%clk 0:02:55]} 7. Be2 {[%clk 0:02:44]}  O-O {[%clk 0:02:54]} 8. O-O {[%clk 0:02:35]}  dxc4 {[%clk 0:02:53]} 9. Bxc4 {[%clk 0:02:32]}  b5 {[%clk 0:02:53]} 10. Bd3 {[%clk 0:02:30]}  Bb7 {[%clk 0:02:54]} 11. Rd1 {[%clk 0:02:28]}  a6 {[%clk 0:02:53]} 12. e4 {[%clk 0:02:14]}  e5 {[%clk 0:02:53]} 13. Ne2 {[%clk 0:01:58]}  Qb8 {[%clk 0:02:49]} 14. dxe5 {[%clk 0:01:53]}  Nxe5 {[%clk 0:02:49]} 15. Nxe5 {[%clk 0:01:54]}  Bxe5 {[%clk 0:02:50]} 16. f4 {[%clk 0:01:54]}  Bc7 {[%clk 0:02:48]} 17. h3 {[%clk 0:01:28]}  Nh5 {[%clk 0:02:43]} 18. e5 {[%clk 0:01:25]}  g6 {[%clk 0:02:42]} 19. Be3 {[%clk 0:01:23]}  Re8 {[%clk 0:02:35]} 20. Bd4 {[%clk 0:01:10]}  c5 {[%clk 0:02:32]} 21. Qxc5 {[%clk 0:01:09]}  Rc8 {[%clk 0:02:21]} 22. Rac1 {[%clk 0:01:03]}  Ng7 {[%clk 0:01:54]} 23. Qe7 {[%clk 0:00:41]}  Ne6 {[%clk 0:01:44]} 24. Be3 {[%clk 0:00:39]}  Bd8 {[%clk 0:01:43]} 25. Qe8+ {[%clk 0:00:34]}  Kg7 {[%clk 0:01:42]} 26. Rxc8 {[%clk 0:00:20]}  Qxc8 {[%clk 0:01:42]} 27. f5 {[%clk 0:00:20]}  Bg5 {[%clk 0:01:39]} 28. f6+ {[%clk 0:00:20]}  Kh6 {[%clk 0:01:39]} 29. Bxg5+ {[%clk 0:00:19]}  Nxg5 {[%clk 0:01:40]} 30. Qxc8 {[%clk 0:00:14]}  Rxc8 {[%clk 0:01:39]} 31. Nf4 {[%clk 0:00:13]}  Re8 {[%clk 0:01:32]} 32. h4 {[%clk 0:00:13]}  Ne6 {[%clk 0:01:25]} 33. Nh3 {[%clk 0:00:10]}  Nc5 {[%clk 0:01:22]} 34. g4 {[%clk 0:00:06]}  Rxe5 {[%clk 0:01:16]} 35. g5+ {[%clk 0:00:06]}  Kh5 {[%clk 0:01:14]} 36. Bf1 {[%clk 0:00:06]}  Kxh4 {[%clk 0:01:07]} 37. b4 {[%clk 0:00:07]}  Ne4 {[%clk 0:01:06]} 38. Rd7 {[%clk 0:00:07]}  Bd5 {[%clk 0:01:05]} 39. Nf4 {[%clk 0:00:07]}  Bxa2 {[%clk 0:01:02]} 40. Rd3 {[%clk 0:00:05]}  Kxg5 {[%clk 0:00:53]} 41. Nh3+ {[%clk 0:00:05]}  Kxf6 {[%clk 0:00:53]} 42. Ra3 {[%clk 0:00:06]}  Bc4 {[%clk 0:00:51]} 43. Rxa6+ {[%clk 0:00:06]}  Kf5 {[%clk 0:00:48]} 44. Bg2 {[%clk 0:00:06]}  h5 {[%clk 0:00:45]} 45. Ra7 {[%clk 0:00:06]}  f6 {[%clk 0:00:43]} 46. Rg7 {[%clk 0:00:06]}  g5 {[%clk 0:00:42]} 47. Rh7 {[%clk 0:00:05]}  h4 {[%clk 0:00:41]} 48. Kh2 {[%clk 0:00:03]}  Ng3 {[%clk 0:00:40]} 49. Ng1 {[%clk 0:00:03]}  Bf1 {[%clk 0:00:36]} 50. Rh6 {[%clk 0:00:03]}  Bxg2 {[%clk 0:00:35]} 51. Kxg2 {[%clk 0:00:04]}  Re4 {[%clk 0:00:35]} 52. Nf3 {[%clk 0:00:03]}  Rxb4 {[%clk 0:00:34]} 0-1


[Site "https://www.chess.com"]